[Event "Live Chess"]
[Site "Chess.com"]
[Date "2023.05.20"]
[Round "-"]
[White "BogdanBeleiUkraine"]
[Black "zdanevych"]
[Result "1/2-1/2"]
[WhiteElo "1224"]
[BlackElo "1538"]
[TimeControl "300"]
[EndTime "10:56:00 PDT"]
[Termination "Game drawn - timeout vs insufficient material"]

1. e4 {[%clk 0:04:57.9]} 1... c5 {[%clk 0:04:58.1]} 2. Nc3 {[%clk 0:04:57.4]}
2... e6 {[%clk 0:04:56.2]} 3. Bc4 {[%clk 0:04:56.9]} 3... d5 {[%clk 0:04:55.7]}
4. exd5 {[%clk 0:04:55.4]} 4... exd5 {[%clk 0:04:55.6]} 5. Bb5+ {[%clk
0:04:54.4]} 5... Nc6 {[%clk 0:04:54.5]} 6. Nge2 {[%clk 0:04:50.4]} 6... a6
{[%clk 0:04:53.4]} 7. Bxc6+ {[%clk 0:04:45.6]} 7... bxc6 {[%clk 0:04:53.3]} 8.
O-O {[%clk 0:04:43.2]} 8... Be6 {[%clk 0:04:52.9]} 9. h3 {[%clk 0:04:41.2]} 9...
Nf6 {[%clk 0:04:52.5]} 10. d3 {[%clk 0:04:39]} 10... h6 {[%clk 0:04:51]} 11. f4
{[%clk 0:04:36.6]} 11... Bd6 {[%clk 0:04:50]} 12. Ng3 {[%clk 0:04:34.3]} 12...
O-O {[%clk 0:04:48.3]} 13. f5 {[%clk 0:04:32.9]} 13... Bd7 {[%clk 0:04:42.7]}
14. Qf3 {[%clk 0:04:22]} 14... Re8 {[%clk 0:04:32.4]} 15. Bd2 {[%clk 0:04:18.9]}
15... d4 {[%clk 0:04:28.6]} 16. Nce4 {[%clk 0:04:13.6]} 16... Nxe4 {[%clk
0:04:18.1]} 17. Nxe4 {[%clk 0:04:11.4]} 17... Be5 {[%clk 0:04:09.7]} 18. Qg4
{[%clk 0:04:07]} 18... Kh8 {[%clk 0:03:55.7]} 19. Rae1 {[%clk 0:03:53]} 19...
Bf6 {[%clk 0:03:43.8]} 20. Nxc5 {[%clk 0:03:47.7]} 20... Rxe1 {[%clk 0:03:40.1]}
21. Rxe1 {[%clk 0:03:45.8]} 21... Qc7 {[%clk 0:03:34.4]} 22. Qh5 {[%clk
0:03:32.7]} 22... Kh7 {[%clk 0:03:16.8]} 23. Ne4 {[%clk 0:03:26.8]} 23... Qd8
{[%clk 0:03:07.5]} 24. Rf1 {[%clk 0:03:11.1]} 24... Rb8 {[%clk 0:03:04.2]} 25.
b3 {[%clk 0:03:09.3]} 25... Rb5 {[%clk 0:03:01]} 26. a4 {[%clk 0:02:52.7]} 26...
Re5 {[%clk 0:02:58.3]} 27. Nd6 {[%clk 0:02:38.1]} 27... Qe7 {[%clk 0:02:53.9]}
28. Nc4 {[%clk 0:02:34.6]} 28... Re2 {[%clk 0:02:45]} 29. Bf4 {[%clk 0:02:19.9]}
29... Rxc2 {[%clk 0:02:40.6]} 30. Bd6 {[%clk 0:02:10]} 30... Qe2 {[%clk
0:02:36.9]} 31. Qxe2 {[%clk 0:02:05.3]} 31... Rxe2 {[%clk 0:02:35.5]} 32. Nb6
{[%clk 0:01:59.3]} 32... Be8 {[%clk 0:02:21.3]} 33. Nc8 {[%clk 0:01:54.4]} 33...
Rd2 {[%clk 0:02:08.5]} 34. Rf3 {[%clk 0:01:52]} 34... Rd1+ {[%clk 0:02:04.8]}
35. Kf2 {[%clk 0:01:48.6]} 35... Bg5 {[%clk 0:01:58.1]} 36. Nb6 {[%clk
0:01:40.6]} 36... Rd2+ {[%clk 0:01:52.3]} 37. Ke1 {[%clk 0:01:39.2]} 37... Rxg2
{[%clk 0:01:48.2]} 38. Nc4 {[%clk 0:01:35.8]} 38... f6 {[%clk 0:01:40.2]} 39.
Bc5 {[%clk 0:01:23]} 39... Bh5 {[%clk 0:01:38.4]} 40. Rf1 {[%clk 0:01:18]} 40...
Re2+ {[%clk 0:01:36.4]} 41. Kd1 {[%clk 0:01:16.4]} 41... Rc2+ {[%clk 0:01:18.3]}
42. Kxc2 {[%clk 0:01:14.5]} 42... Be2 {[%clk 0:01:12.6]} 43. Re1 {[%clk
0:01:10.9]} 43... Bh5 {[%clk 0:01:11]} 44. Nd6 {[%clk 0:01:05.5]} 44... Be3
{[%clk 0:01:09.4]} 45. b4 {[%clk 0:01:01.1]} 45... Bf3 {[%clk 0:01:05.1]} 46.
Kb3 {[%clk 0:00:59.9]} 46... Bg2 {[%clk 0:01:04]} 47. Kc4 {[%clk 0:00:58.5]}
47... Bxh3 {[%clk 0:01:02.6]} 48. b5 {[%clk 0:00:54.7]} 48... cxb5+ {[%clk
0:01:02.2]} 49. axb5 {[%clk 0:00:53.2]} 49... axb5+ {[%clk 0:01:01.7]} 50. Nxb5
{[%clk 0:00:52.2]} 50... Bxf5 {[%clk 0:00:58.7]} 51. Nxd4 {[%clk 0:00:49.3]}
51... Bd2 {[%clk 0:00:53.3]} 52. Nxf5 {[%clk 0:00:47.2]} 52... Bxe1 {[%clk
0:00:51.9]} 53. d4 {[%clk 0:00:46.4]} 53... Ba5 {[%clk 0:00:47.4]} 54. d5 {[%clk
0:00:44.8]} 54... Bc7 {[%clk 0:00:45.3]} 55. Bd6 {[%clk 0:00:42.8]} 55... Bd8
{[%clk 0:00:42.4]} 56. Be7 {[%clk 0:00:39.9]} 56... Ba5 {[%clk 0:00:41.2]} 57.
Kc5 {[%clk 0:00:39]} 57... Bc7 {[%clk 0:00:34.4]} 58. Kc6 {[%clk 0:00:37.3]}
58... Be5 {[%clk 0:00:34]} 59. Bd6 {[%clk 0:00:34.1]} 59... Kg8 {[%clk
0:00:30.6]} 60. Bxe5 {[%clk 0:00:32.7]} 60... fxe5 {[%clk 0:00:30.5]} 61. d6
{[%clk 0:00:31.9]} 61... Kf8 {[%clk 0:00:29.4]} 62. d7 {[%clk 0:00:29.7]} 62...
g6 {[%clk 0:00:27]} 63. Kc7 {[%clk 0:00:28.6]} 63... gxf5 {[%clk 0:00:25.2]} 64.
d8=Q+ {[%clk 0:00:27.2]} 64... Kg7 {[%clk 0:00:25.1]} 65. Qd7+ {[%clk
0:00:25.8]} 65... Kg6 {[%clk 0:00:24.6]} 66. Qd6+ {[%clk 0:00:24.8]} 66... Kg5
{[%clk 0:00:24.1]} 67. Qxe5 {[%clk 0:00:23.9]} 67... Kg4 {[%clk 0:00:23.1]} 68.
Qg7+ {[%clk 0:00:22.9]} 68... Kf4 {[%clk 0:00:22.1]} 69. Qxh6+ {[%clk
0:00:21.5]} 69... Ke5 {[%clk 0:00:21.5]} 70. Qh2+ {[%clk 0:00:19.7]} 70... Ke6
{[%clk 0:00:20.7]} 71. Qh6+ {[%clk 0:00:18.3]} 71... Ke5 {[%clk 0:00:19.8]} 72.
Qg7+ {[%clk 0:00:17.3]} 72... Ke4 {[%clk 0:00:19.7]} 73. Qe7+ {[%clk 0:00:15.8]}
73... Kf4 {[%clk 0:00:19.6]} 74. Qb4+ {[%clk 0:00:13.8]} 74... Kg5 {[%clk
0:00:19.5]} 75. Qd2+ {[%clk 0:00:12.3]} 75... Kf6 {[%clk 0:00:19.4]} 76. Qd6+
{[%clk 0:00:10.8]} 76... Kg5 {[%clk 0:00:18.6]} 77. Kd7 {[%clk 0:00:09.8]} 77...
Kg4 {[%clk 0:00:17.7]} 78. Ke6 {[%clk 0:00:09.4]} 78... Kg5 {[%clk 0:00:16.7]}
79. Qe5 {[%clk 0:00:09]} 79... Kg4 {[%clk 0:00:15.1]} 80. Qxf5+ {[%clk
0:00:08.2]} 80... Kg3 {[%clk 0:00:14.2]} 81. Kf6 {[%clk 0:00:07.3]} 81... Kg2
{[%clk 0:00:13.4]} 82. Qg5+ {[%clk 0:00:06.5]} 82... Kf3 {[%clk 0:00:12.7]} 83.
Qh5+ {[%clk 0:00:04.6]} 83... Ke3 {[%clk 0:00:12.6]} 84. Kf5 {[%clk 0:00:03.5]}
84... Kd4 {[%clk 0:00:12.5]} 85. Kf4 {[%clk 0:00:02.6]} 85... Kc4 {[%clk
0:00:12.4]} 86. Ke3 {[%clk 0:00:01.5]} 86... Kc3 {[%clk 0:00:11.6]} 87. Ke2
{[%clk 0:00:00.7]} 87... Kc4 {[%clk 0:00:11.5]} 1/2-1/2

[Event "Live Chess"]
[Site "Chess.com"]
[Date "2023.05.20"]
[Round "-"]
[White "JoeyCage"]
[Black "Bot_Boy"]
[Result "1-0"]
[WhiteElo "2296"]
[BlackElo "325"]
[TimeControl "300"]
[EndTime "10:56:00 PDT"]
[Termination "JoeyCage won on time"]

1. e4 {[%clk 0:04:58.1]} 1... d6 {[%clk 0:04:56.5]} 2. d4 {[%clk 0:04:56.9]}
2... Nc6 {[%clk 0:04:51.5]} 3. Nf3 {[%clk 0:04:55.5]} 3... e5 {[%clk 0:04:48.9]}
4. dxe5 {[%clk 0:04:54.3]} 4... Nxe5 {[%clk 0:04:45.5]} 5. Nxe5 {[%clk
0:04:53.1]} 5... dxe5 {[%clk 0:04:44.1]} 6. Qxd8+ {[%clk 0:04:52.2]} 6... Kxd8
{[%clk 0:04:43]} 7. Bc4 {[%clk 0:04:52.1]} 7... f6 {[%clk 0:04:36.8]} 8. Be3
{[%clk 0:04:50.7]} 8... c5 {[%clk 0:04:31.1]} 9. Ke2 {[%clk 0:04:49.6]} 9... a5
{[%clk 0:04:09]} 10. Nc3 {[%clk 0:04:45.7]} 10... Ne7 {[%clk 0:04:02.9]} 11.
Bxc5 {[%clk 0:04:43.3]} 11... Ng6 {[%clk 0:03:57.2]} 12. Bb6+ {[%clk 0:04:41.7]}
12... Ke8 {[%clk 0:03:51.1]} 13. Rhd1 {[%clk 0:04:34.1]} 13... Nf4+ {[%clk
0:03:47.5]} 14. Kf3 {[%clk 0:04:32.7]} 14... Bd7 {[%clk 0:03:31.2]} 15. Nd5
{[%clk 0:04:29.1]} 15... Rc8 {[%clk 0:03:20.6]} 16. Nc7+ {[%clk 0:04:25.5]}
16... Rxc7 {[%clk 0:03:12.5]} 17. Bxc7 {[%clk 0:04:23.6]} 17... Ne6 {[%clk
0:02:57.5]} 18. Bxa5 {[%clk 0:04:18]} 18... Nd4+ {[%clk 0:02:49.1]} 19. Rxd4
{[%clk 0:04:13.3]} 19... exd4 {[%clk 0:02:47.3]} 20. Rd1 {[%clk 0:04:10.4]}
20... Bc5 {[%clk 0:02:42.2]} 21. a3 {[%clk 0:04:08.6]} 21... Ke7 {[%clk
0:02:38.7]} 22. Bb4 {[%clk 0:04:06.9]} 22... b6 {[%clk 0:02:33.1]} 23. Rxd4
{[%clk 0:04:02.8]} 23... Rf8 {[%clk 0:02:12.3]} 24. Bxc5+ {[%clk 0:03:51.2]}
24... bxc5 {[%clk 0:02:08.1]} 25. Rd5 {[%clk 0:03:50.6]} 25... f5 {[%clk
0:01:58.2]} 26. Rxc5 {[%clk 0:03:42.2]} 26... f4 {[%clk 0:01:38.1]} 27. b4
{[%clk 0:03:30.8]} 27... g5 {[%clk 0:01:12.5]} 28. Rxg5 {[%clk 0:03:28.3]} 28...
Ra8 {[%clk 0:01:02.4]} 29. Ra5 {[%clk 0:03:26.6]} 29... Rc8 {[%clk 0:00:52.3]}
30. Bd3 {[%clk 0:03:25.1]} 30... Rg8 {[%clk 0:00:32.8]} 31. Kxf4 {[%clk
0:03:18.9]} 31... Rxg2 {[%clk 0:00:29]} 32. Rh5 {[%clk 0:03:15]} 32... Rxf2+
{[%clk 0:00:25.7]} 33. Ke5 {[%clk 0:03:13.5]} 33... Rf7 {[%clk 0:00:13.9]} 34.
b5 {[%clk 0:03:10.4]} 34... Bg4 {[%clk 0:00:08.3]} 35. Rh6 {[%clk 0:03:07.9]}
35... Rf5+ {[%clk 0:00:01.8]} 36. exf5 {[%clk 0:03:06]} 1-0

[Event "Live Chess"]
[Site "Chess.com"]
[Date "2023.05.20"]
[Round "-"]
[White "tpm07"]
[Black "yeetpizza74"]
[Result "1-0"]
[WhiteElo "1950"]
[BlackElo "448"]
[TimeControl "300"]
[EndTime "10:56:01 PDT"]
[Termination "tpm07 won by checkmate"]

1. e4 {[%clk 0:04:55.4]} 1... c6 {[%clk 0:04:58.5]} 2. d4 {[%clk 0:04:52.7]}
2... d5 {[%clk 0:04:57.5]} 3. Nc3 {[%clk 0:04:51.7]} 3... Nf6 {[%clk 0:04:51.8]}
4. e5 {[%clk 0:04:48.6]} 4... Ne4 {[%clk 0:04:48]} 5. Nxe4 {[%clk 0:04:46.1]}
5... dxe4 {[%clk 0:04:46.6]} 6. Bc4 {[%clk 0:04:40.5]} 6... Be6 {[%clk
0:04:37.7]} 7. Bxe6 {[%clk 0:04:36.4]} 7... fxe6 {[%clk 0:04:36.2]} 8. c3 {[%clk
0:04:35.3]} 8... g6 {[%clk 0:04:28.7]} 9. Qe2 {[%clk 0:04:32.6]} 9... Bg7 {[%clk
0:04:22.4]} 10. Qxe4 {[%clk 0:04:30.4]} 10... O-O {[%clk 0:04:19.4]} 11. Nf3
{[%clk 0:04:29.2]} 11... Nd7 {[%clk 0:04:04.3]} 12. O-O {[%clk 0:04:26.7]} 12...
c5 {[%clk 0:04:01.4]} 13. Qxb7 {[%clk 0:04:22.3]} 13... Rb8 {[%clk 0:03:55.3]}
14. Qe4 {[%clk 0:04:18.6]} 14... cxd4 {[%clk 0:03:51.9]} 15. cxd4 {[%clk
0:04:18.5]} 15... Kf7 {[%clk 0:03:27.9]} 16. Ng5+ {[%clk 0:04:15]} 16... Kg8
{[%clk 0:03:23]} 17. Nxe6 {[%clk 0:04:11.2]} 17... Qa5 {[%clk 0:02:50.3]} 18.
Nxf8 {[%clk 0:04:06.4]} 18... Bxf8 {[%clk 0:02:44]} 19. b3 {[%clk 0:04:01.2]}
19... Qc3 {[%clk 0:02:38.5]} 20. Rb1 {[%clk 0:03:57.8]} 20... Qa5 {[%clk
0:02:27.3]} 21. Rd1 {[%clk 0:03:51.5]} 21... Qxa2 {[%clk 0:02:20.6]} 22. Bg5
{[%clk 0:03:40.4]} 22... Rxb3 {[%clk 0:01:57.8]} 23. Qd5+ {[%clk 0:03:32.7]}
23... e6 {[%clk 0:01:41.6]} 24. Qxe6+ {[%clk 0:03:29]} 24... Kg7 {[%clk
0:01:33.2]} 25. Rxb3 {[%clk 0:03:22.4]} 25... h6 {[%clk 0:01:15.1]} 26. Qxd7+
{[%clk 0:03:16.6]} 26... Kg8 {[%clk 0:01:06.2]} 27. Qe6+ {[%clk 0:03:11.9]}
27... Kg7 {[%clk 0:00:58.2]} 28. Bf6+ {[%clk 0:03:07.4]} 28... Kh7 {[%clk
0:00:53.8]} 29. Qf7+ {[%clk 0:03:05.4]} 29... Bg7 {[%clk 0:00:48.1]} 30. Qxg7#
{[%clk 0:03:04.2]} 1-0

[Event "Live Chess"]
[Site "Chess.com"]
[Date "2023.05.20"]
[Round "-"]
[White "GMHarry-youtube"]
[Black "CeladonFish"]
[Result "1-0"]
[WhiteElo "2140"]
[BlackElo "1042"]
[TimeControl "300"]
[EndTime "10:56:03 PDT"]
[Termination "GMHarry-youtube won by checkmate"]

1. e4 {[%clk 0:04:58.9]} 1... d6 {[%clk 0:04:57.7]} 2. d4 {[%clk 0:04:56.9]}
2... Nf6 {[%clk 0:04:56.4]} 3. Nc3 {[%clk 0:04:55.6]} 3... g6 {[%clk 0:04:54.8]}
4. f4 {[%clk 0:04:54.9]} 4... Bg7 {[%clk 0:04:52.1]} 5. Nf3 {[%clk 0:04:53.2]}
5... O-O {[%clk 0:04:49.9]} 6. Bd3 {[%clk 0:04:51]} 6... Bg4 {[%clk 0:04:45.7]}
7. h3 {[%clk 0:04:50.2]} 7... Bxf3 {[%clk 0:04:43.8]} 8. Qxf3 {[%clk 0:04:50.1]}
8... Nc6 {[%clk 0:04:34.8]} 9. Be3 {[%clk 0:04:47.3]} 9... d5 {[%clk 0:04:29.5]}
10. e5 {[%clk 0:04:45.9]} 10... Nd7 {[%clk 0:04:22.7]} 11. f5 {[%clk 0:04:43.5]}
11... gxf5 {[%clk 0:04:18.6]} 12. Qxf5 {[%clk 0:04:40]} 12... e6 {[%clk
0:04:14.9]} 13. Qxh7# {[%clk 0:04:38.8]} 1-0

[Event "Live Chess"]
[Site "Chess.com"]
[Date "2023.05.20"]
[Round "-"]
[White "EdenHazard8"]
[Black "misha464"]
[Result "1-0"]
[WhiteElo "2112"]
[BlackElo "743"]
[TimeControl "300"]
[EndTime "10:56:05 PDT"]
[Termination "EdenHazard8 won by resignation"]

1. e4 {[%clk 0:04:58.5]} 1... e5 {[%clk 0:04:58.9]} 2. Qh5 {[%clk 0:04:58.1]}
2... Nc6 {[%clk 0:04:53.5]} 3. Bc4 {[%clk 0:04:57.1]} 3... Qe7 {[%clk
0:04:33.1]} 4. d3 {[%clk 0:04:55]} 4... Nf6 {[%clk 0:04:31.6]} 5. Qf3 {[%clk
0:04:53.2]} 5... Nd4 {[%clk 0:04:29.7]} 6. Qd1 {[%clk 0:04:52.1]} 6... a6 {[%clk
0:04:26.2]} 7. c3 {[%clk 0:04:50.5]} 7... Nc6 {[%clk 0:04:25.6]} 8. Nf3 {[%clk
0:04:49.9]} 8... b5 {[%clk 0:04:25]} 9. Bb3 {[%clk 0:04:47.4]} 9... a5 {[%clk
0:04:23.1]} 10. a4 {[%clk 0:04:46.3]} 10... b4 {[%clk 0:04:21.4]} 11. O-O {[%clk
0:04:44.2]} 11... bxc3 {[%clk 0:04:13.8]} 12. Nxc3 {[%clk 0:04:44.1]} 12... Nd4
{[%clk 0:04:09]} 13. Nxd4 {[%clk 0:04:40]} 13... exd4 {[%clk 0:04:08.9]} 14. Nb5
{[%clk 0:04:39.1]} 14... c5 {[%clk 0:04:05.5]} 15. Nc7+ {[%clk 0:04:37.3]} 15...
Kd8 {[%clk 0:04:03.5]} 16. Nxa8 {[%clk 0:04:37.2]} 16... Bb7 {[%clk 0:04:01.7]}
17. Nb6 {[%clk 0:04:35.6]} 17... Qe6 {[%clk 0:03:52.4]} 18. Bxe6 {[%clk
0:04:32.4]} 1-0

[Event "Live Chess"]
[Site "Chess.com"]
[Date "2023.05.20"]
[Round "-"]
[White "howitzer14"]
[Black "Fazer180"]
[Result "1-0"]
[WhiteElo "2903"]
[BlackElo "1728"]
[TimeControl "300"]
[EndTime "10:56:08 PDT"]
[Termination "howitzer14 won by resignation"]

1. c4 {[%clk 0:04:54.6]} 1... e6 {[%clk 0:04:58.8]} 2. Nc3 {[%clk 0:04:54.2]}
2... d5 {[%clk 0:04:57.2]} 3. e3 {[%clk 0:04:53.5]} 3... Nf6 {[%clk 0:04:55.8]}
4. Nf3 {[%clk 0:04:53]} 4... c5 {[%clk 0:04:52.3]} 5. cxd5 {[%clk 0:04:51]} 5...
exd5 {[%clk 0:04:49.6]} 6. d4 {[%clk 0:04:50.9]} 6... cxd4 {[%clk 0:04:41.9]} 7.
Nxd4 {[%clk 0:04:32.3]} 7... Nc6 {[%clk 0:04:35.7]} 8. Be2 {[%clk 0:04:29.6]}
8... a6 {[%clk 0:04:32.7]} 9. O-O {[%clk 0:04:27.3]} 9... Bc5 {[%clk 0:04:26.1]}
10. Bf3 {[%clk 0:04:08]} 10... Be6 {[%clk 0:04:19]} 11. Nce2 {[%clk 0:04:05.3]}
11... O-O {[%clk 0:04:10]} 12. b3 {[%clk 0:04:03.7]} 12... Qb6 {[%clk
0:03:57.7]} 13. Bb2 {[%clk 0:04:01.4]} 13... Rac8 {[%clk 0:03:50.2]} 14. Nxc6
{[%clk 0:03:52.4]} 14... bxc6 {[%clk 0:03:48.6]} 15. Bxf6 {[%clk 0:03:51.8]}
15... gxf6 {[%clk 0:03:47.6]} 16. Rc1 {[%clk 0:03:46.8]} 16... Qa5 {[%clk
0:03:38.3]} 17. Nd4 {[%clk 0:03:40.3]} 17... Bd6 {[%clk 0:03:25.3]} 18. Nxc6
{[%clk 0:03:26.3]} 18... Qxa2 {[%clk 0:03:07.5]} 19. Bxd5 {[%clk 0:03:23.7]}
19... Bxd5 {[%clk 0:02:55.2]} 20. Qxd5 {[%clk 0:03:23.6]} 20... Qa3 {[%clk
0:02:26.8]} 21. Rfd1 {[%clk 0:02:59.2]} 21... Bc7 {[%clk 0:02:20]} 22. g3 {[%clk
0:02:47]} 22... Rfd8 {[%clk 0:02:08.5]} 23. Nxd8 {[%clk 0:02:44.4]} 23... Rxd8
{[%clk 0:02:04.3]} 24. Qc4 {[%clk 0:02:40]} 24... Rxd1+ {[%clk 0:01:48.7]} 25.
Rxd1 {[%clk 0:02:39.9]} 25... Bd6 {[%clk 0:01:40.5]} 26. Kg2 {[%clk 0:02:22.5]}
26... a5 {[%clk 0:01:31.6]} 27. Rd4 {[%clk 0:02:15.1]} 27... f5 {[%clk
0:01:13.5]} 28. Rd5 {[%clk 0:02:12.4]} 28... Bb4 {[%clk 0:01:06.7]} 29. Rxf5
{[%clk 0:02:10]} 29... Qb2 {[%clk 0:01:04]} 30. Qxf7+ {[%clk 0:02:08.9]} 1-0

[Event "Live Chess"]
[Site "Chess.com"]
[Date "2023.05.20"]
[Round "-"]
[White "Doge_Dandolo"]
[Black "Duke_of_Bebington"]
[Result "1-0"]
[WhiteElo "2122"]
[BlackElo "1580"]
[TimeControl "300"]
[EndTime "10:56:25 PDT"]
[Termination "Doge_Dandolo won by checkmate"]

1. Nf3 {[%clk 0:04:57.9]} 1... d5 {[%clk 0:04:58.1]} 2. c4 {[%clk 0:04:55.4]}
2... c6 {[%clk 0:04:56.4]} 3. g3 {[%clk 0:04:53.9]} 3... Nf6 {[%clk 0:04:52.9]}
4. Bg2 {[%clk 0:04:52.8]} 4... Bf5 {[%clk 0:04:49.9]} 5. Qb3 {[%clk 0:04:49.2]}
5... Qb6 {[%clk 0:04:41]} 6. d3 {[%clk 0:04:45.9]} 6... e6 {[%clk 0:04:37.2]} 7.
Be3 {[%clk 0:04:43.2]} 7... Qxb3 {[%clk 0:04:35.2]} 8. axb3 {[%clk 0:04:42]}
8... Nbd7 {[%clk 0:04:34.8]} 9. c5 {[%clk 0:04:36.9]} 9... Nxc5 {[%clk
0:04:28.2]} 10. b4 {[%clk 0:04:31.3]} 10... Ncd7 {[%clk 0:04:16.4]} 11. b5
{[%clk 0:04:24.8]} 11... c5 {[%clk 0:04:12]} 12. Nbd2 {[%clk 0:04:19.2]} 12...
Be7 {[%clk 0:03:56.8]} 13. Nb3 {[%clk 0:04:10.6]} 13... b6 {[%clk 0:03:55]} 14.
Bf4 {[%clk 0:04:00.8]} 14... O-O {[%clk 0:03:36.3]} 15. Kd2 {[%clk 0:03:56.4]}
15... h6 {[%clk 0:03:28.5]} 16. Ne5 {[%clk 0:03:53.9]} 16... Rfd8 {[%clk
0:03:19.8]} 17. Nc6 {[%clk 0:03:51.6]} 17... Re8 {[%clk 0:03:17.2]} 18. Ra3
{[%clk 0:03:43.8]} 18... e5 {[%clk 0:03:05]} 19. Bxe5 {[%clk 0:03:38.1]} 19...
Nxe5 {[%clk 0:03:03.4]} 20. Nxe5 {[%clk 0:03:37]} 20... c4 {[%clk 0:03:02.5]}
21. Nd4 {[%clk 0:03:30.3]} 21... Bxa3 {[%clk 0:03:00.4]} 22. Nxf5 {[%clk
0:03:29.1]} 22... Bxb2 {[%clk 0:02:58.3]} 23. Nc6 {[%clk 0:03:25.8]} 23... cxd3
{[%clk 0:02:51.1]} 24. exd3 {[%clk 0:03:21.9]} 24... a6 {[%clk 0:02:45]} 25. Rb1
{[%clk 0:03:18.6]} 25... Ba3 {[%clk 0:02:37.4]} 26. Rb3 {[%clk 0:03:13.3]} 26...
Bc5 {[%clk 0:02:26.2]} 27. d4 {[%clk 0:03:08.5]} 27... Bf8 {[%clk 0:02:21.3]}
28. Bf3 {[%clk 0:03:01.7]} 28... Rec8 {[%clk 0:02:10.7]} 29. Nfe7+ {[%clk
0:02:56]} 29... Bxe7 {[%clk 0:02:08.9]} 30. Nxe7+ {[%clk 0:02:55.5]} 30... Kf8
{[%clk 0:02:07.6]} 31. Nxc8 {[%clk 0:02:54.7]} 31... Rxc8 {[%clk 0:02:06.6]} 32.
bxa6 {[%clk 0:02:54.1]} 32... Ra8 {[%clk 0:02:03.7]} 33. Rxb6 {[%clk 0:02:52.9]}
33... Nd7 {[%clk 0:02:01.7]} 34. Rd6 {[%clk 0:02:47.6]} 34... Nf6 {[%clk
0:01:55.6]} 35. Kc3 {[%clk 0:02:42.4]} 35... Ke7 {[%clk 0:01:54.7]} 36. Rb6
{[%clk 0:02:31]} 36... Kd7 {[%clk 0:01:51.7]} 37. Kb4 {[%clk 0:02:27.2]} 37...
Kc7 {[%clk 0:01:50.8]} 38. Ka5 {[%clk 0:02:20.6]} 38... Ra7 {[%clk 0:01:45.1]}
39. Be2 {[%clk 0:02:13]} 39... Ne4 {[%clk 0:01:41.1]} 40. f3 {[%clk 0:02:09.2]}
40... Nd6 {[%clk 0:01:37.6]} 41. Bd3 {[%clk 0:02:01.7]} 41... Kd7 {[%clk
0:01:25.5]} 42. Bb5+ {[%clk 0:01:55.4]} 42... Ke7 {[%clk 0:01:22.2]} 43. Kb4
{[%clk 0:01:47.2]} 43... Nxb5 {[%clk 0:01:14.6]} 44. Kxb5 {[%clk 0:01:42.8]}
44... Kd7 {[%clk 0:01:13.5]} 45. Kc5 {[%clk 0:01:37.3]} 45... Kc7 {[%clk
0:01:11]} 46. Rb7+ {[%clk 0:01:34.5]} 46... Rxb7 {[%clk 0:01:09.5]} 47. axb7
{[%clk 0:01:34]} 47... Kxb7 {[%clk 0:01:09.4]} 48. Kxd5 {[%clk 0:01:33.4]} 48...
Kc7 {[%clk 0:01:09]} 49. h4 {[%clk 0:01:28.9]} 49... Kd7 {[%clk 0:01:08.1]} 50.
h5 {[%clk 0:01:26.5]} 50... g6 {[%clk 0:01:04.8]} 51. g4 {[%clk 0:01:24.5]}
51... g5 {[%clk 0:00:56.1]} 52. Ke5 {[%clk 0:01:20]} 52... Ke7 {[%clk
0:00:49.9]} 53. d5 {[%clk 0:01:16.3]} 53... f6+ {[%clk 0:00:42]} 54. Kf5 {[%clk
0:01:14.6]} 54... Kf7 {[%clk 0:00:39.7]} 55. d6 {[%clk 0:01:12.3]} 55... Kg7
{[%clk 0:00:34.1]} 56. d7 {[%clk 0:01:08.9]} 56... Kf7 {[%clk 0:00:33.5]} 57.
d8=Q {[%clk 0:01:07.5]} 57... Kg7 {[%clk 0:00:32.7]} 58. Qxf6+ {[%clk
0:01:06.4]} 58... Kh7 {[%clk 0:00:32.3]} 59. Qg6+ {[%clk 0:01:05]} 59... Kh8
{[%clk 0:00:31.8]} 60. Qxh6+ {[%clk 0:01:04.3]} 60... Kg8 {[%clk 0:00:30.4]} 61.
Qxg5+ {[%clk 0:01:03.3]} 61... Kh7 {[%clk 0:00:29.8]} 62. Qg6+ {[%clk
0:01:01.8]} 62... Kh8 {[%clk 0:00:29.2]} 63. Qb6 {[%clk 0:00:59.8]} 63... Kg7
{[%clk 0:00:28.1]} 64. Kg5 {[%clk 0:00:58.4]} 64... Kh7 {[%clk 0:00:27.5]} 65.
h6 {[%clk 0:00:53.9]} 65... Kh8 {[%clk 0:00:26.6]} 66. Qb7 {[%clk 0:00:51.7]}
66... Kg8 {[%clk 0:00:25.3]} 67. Qg7# {[%clk 0:00:50.8]} 1-0